[Event "BSV-SCK IM 2022"]
[Site "Berlin"]
[Date "2022.04.13"]
[Round "7.5"]
[White "Schmidek, Emil"]
[Black "Mcgowan, Daniel"]
[Result "1-0"]
[ECO "D36"]
[WhiteElo "2383"]
[BlackElo "2101"]
[Annotator "TA"]
[PlyCount "85"]
[EventDate "2022.04.08"]
[EventType "tourn"]
[EventCountry "GER"]
[SourceTitle "playchess.com"]
[Source "ChessBase"]
[SourceQuality "1"]
[TimeControl "5400+30"]

{[%evp 20,85,26,10,59,53,80,76,82,81,73,71,64,70,67,74,75,72,82,67,64,41,98,70,89,91,99,88,77,69,106,68,91,87,63,79,91,83,91,85,85,85,87,89,82,82,85,85,86,85,89,92,85,97,141,139,426,430,435,428,435,434,460,467,564,539,532,503]} 1. d4 {[%emt 0:00:03]} Nf6 {[%emt 0:01:31]} 2. c4 {[%emt 0:00:03]} e6 {[%emt 0:00:28]} 3. Nc3 {[%emt 0:00:11]} d5 {[%emt 0:00:21]} 4. cxd5 {[%emt 0:00:08]} exd5 {[%emt 0:00:13]} 5. Bg5 {[%emt 0:00:07]} c6 {[%emt 0:00:31]} 6. e3 {[%emt 0:00:08]} Be7 {[%emt 0:01:04]} 7. Bd3 {[%emt 0:00:11]} Nbd7 {[%emt 0:00:44]} 8. Qc2 {[%emt 0:00:18]} O-O {[%emt 0:01:44]} 9. Nf3 {[%emt 0:01:45]} Re8 {[%emt 0:10:11]} 10. h3 {[%emt 0:01:05]} Nf8 {[%emt 0:01:41]} 11. Bf4 {[%emt 0:00:15]} c5 {[%emt 0:03:23] D36: Queen's Gambit Declined: Exchange Variation: Main line (5 Bg5 c6 6 Qc2).} (11... Ne6 $11) 12. dxc5 $14 {[%emt 0:02:35]} Ne6 {[%emt 0:04:22]} 13. Be5 {[%emt 0:02:00]} Nxc5 {[%emt 0:11:55][%cal Of6e4] [#] White is better.} 14. O-O $1 {[%emt 0:00:58]} Nxd3 {[%emt 0:02:03]} 15. Qxd3 {[%emt 0:00:18]} Be6 {[%emt 0:00:57] [#]} 16. Nb5 $146 {[%emt 0:08:44] aiming for Rac1.} (16. Rad1 {looks sharper.} Qb6 17. Ng5 g6 18. Bd4) ({Predecessor:} 16. Rfd1 Rc8 17. Rac1 a6 18. Ne2 Qd7 19. Ned4 h6 20. b3 Ne4 21. Nxe6 fxe6 22. Rxc8 Qxc8 {0-1 (37) Savon,V (2425)-Yagupov,I (2450) St Petersburg 1998}) 16... Nd7 {[%emt 0:03:24]} 17. Bh2 {[%emt 0:06:15] &Bianco is much more active.} Nc5 {[%emt 0:03:32]} 18. Qe2 {[%emt 0:01:09]} Na6 {[%emt 0:03:02] Against Nc7} 19. Rfc1 {[%emt 0:08:55]} Bf6 {[%emt 0:03:54]} 20. a3 {[%emt 0:17:49]} Re7 {[%emt 0:08:20]} (20... Bd7 $14) 21. Bd6 {[%emt 0:05:35]} Rd7 {[%emt 0:01:21]} 22. Be5 {[%emt 0:03:27]} Bxe5 {[%emt 0:01:33]} 23. Nxe5 {[%emt 0:00:06]} Re7 {[%emt 0:00:11][%cal Oe6h3]} 24. Nf3 {[%emt 0:00:44]} Qb6 {[%emt 0:02:32]} 25. b4 {[%emt 0:01:12]} Bd7 {[%emt 0:01:40]} 26. Nc3 {[%emt 0:03:19]} Nc7 {[%emt 0:00:52]} 27. Qd3 {[%emt 0:04:18]} Qg6 {[%emt 0:05:42]} 28. Qxg6 {[%emt 0:01:44]} hxg6 {[%emt 0:00:06]} 29. Rd1 {[%emt 0:01:27]} Be6 {[%emt 0:00:31]} 30. Rac1 {[%emt 0:01:53]} f6 {[%emt 0:07:18]} 31. Nd4 {[%emt 0:00:54]} Bf7 {[%emt 0:00:30]} 32. Ncb5 {[%emt 0:03:35] Pair of Knights!} Ne8 {[%emt 0:01:09]} 33. Rc5 {[%emt 0:06:49]} a6 {[%emt 0:02:15]} 34. Nc3 {[%emt 0:00:37][%cal Bb5c3,Bc3a4,Ba4b6][%mdl 32]} Rd8 {[%emt 0:02:26]} 35. Na4 {[%emt 0:06:58]} Nd6 {[%emt 0:01:22]} 36. Nb6 {[%emt 0:01:09]} Nc4 {[%emt 0:01:22] [#]} 37. Nc6 $1 {[%emt 0:01:33]} Nxb6 $2 {[%emt 0:02:39][%mdl 8192] Black cannot hold the game after this.} (37... bxc6 $16 38. Nxc4 Red7) 38. Nxe7+ $18 {[%emt 0:09:31] White is clearly winning.} Kf8 {[%emt 0:00:19]} 39. Rc7 {[%emt 0:00:12]} Rb8 {[%emt 0:03:41]} 40. Rdc1 {[%emt 0:01:01]} Nc4 {[%emt 0:00:30]} 41. e4 {[%emt 0:00:00]} dxe4 {[%emt 0:00:00]} 42. R1xc4 {[%emt 0:00:00]} Bxc4 {[%emt 0:00:00]} 43. Nxg6+ {[%emt 0:00:00] Weighted Error Value: White=0.04 (flawless) /Black=0.27 (precise)} ({Inferior is} 43. Rxc4 Kxe7 44. Rxe4+ Kf7 $11) 1-0

[Event "BSV-SCK IM 2022"]
[Site "Berlin"]
[Date "2022.04.13"]
[Round "8.1"]
[White "Vogel, Constantin"]
[Black "Mcgowan, Daniel"]
[Result "0-1"]
[ECO "E06"]
[WhiteElo "2209"]
[BlackElo "2101"]
[Annotator "TA"]
[PlyCount "76"]
[EventDate "2022.04.08"]
[EventType "tourn"]
[EventCountry "GER"]
[SourceTitle "playchess.com"]
[Source "ChessBase"]
[SourceQuality "1"]
[TimeControl "5400+30"]

{[%evp 14,76,22,21,23,14,27,28,25,0,77,89,117,87,77,62,82,30,38,25,24,16,20,-59,-62,-66,-64,-122,-89,-82,-81,-99,-64,-92,-87,-79,-83,-83,-89,-132,-91,-319,-327,-310,-313,-320,-324,-333,-200,-197,-165,-232,-220,-229,-227,-250,-233,-301,-239,-225,-233,-476,-474,-552,-519]} 1. c4 {[%emt 0:00:03]} e6 {[%emt 0:01:09]} 2. g3 {[%emt 0:00:04]} d5 {[%emt 0:00:06]} 3. Bg2 {[%emt 0:00:14]} Nf6 {[%emt 0:00:08]} 4. Nf3 {[%emt 0:00:04][%cal Bg1f3,Bf3e5,Be5c4][%mdl 32]} Be7 {[%emt 0:00:09]} 5. O-O {[%emt 0:00:12]} O-O {[%emt 0:00:07]} 6. d4 {[%emt 0:00:03]} c6 {[%emt 0:00:23]} 7. Qc2 {[%emt 0:03:52]} b6 $1 {[%emt 0:05:32][%mdl 4] is more profitable than 7...Nbd7 at the moment.} 8. Ne5 {[%emt 0:07:22]} Bb7 {[%emt 0:01:16] E06: Closed Catalan: Early deviations.} 9. Nc3 {[%emt 0:04:15]} dxc4 {[%emt 0:03:14]} 10. Rd1 {[%emt 0:01:06]} Qc8 {[%emt 0:00:54] White has an edge.} 11. Nxc4 {[%emt 0:04:11]} (11. Bg5 {seems wilder.} b5 12. Ne4 Re8 13. Nc5) 11... Rd8 {[%emt 0:02:40]} (11... c5 $1 $11 {remains equal.}) 12. e4 $16 {[%emt 0:01:43] [#]} Nbd7 $146 {[%emt 0:02:53][%cal Bb8d7,Bd7f8,Bf8g6][%mdl 32]} ({Predecessor:} 12... Ba6 13. Ne3 Nbd7 14. f4 g6 15. b3 b5 16. Bb2 Nb6 17. Rac1 Qd7 18. Qf2 b4 {1-0 (36) Rakesh,K (2335)-Samrat,G (1861) Dhaka 2019}) 13. Bf4 {[%emt 0:03:58]} Nf8 {[%emt 0:00:50]} 14. a4 {[%emt 0:06:45]} h6 {[%emt 0:02:33]} 15. Qb3 {[%emt 0:12:38]} (15. b3 $16) 15... Ng6 $11 {[%emt 0:01:51]} 16. Be3 {[%emt 0:02:06]} Ng4 {[%emt 0:01:05]} 17. Bc1 {[%emt 0:00:15]} e5 {[%emt 0:05:38]} 18. Bh3 {[%emt 0:13:11]} (18. d5 $11) 18... exd4 $15 {[%emt 0:01:00]} 19. Ne2 {[%emt 0:00:25]} d3 {[%emt 0:02:15]} 20. Rxd3 {[%emt 0:09:50]} ({White should play} 20. Nf4 $1 $15 Nxf4 21. Bxf4) 20... Rxd3 {[%emt 0:00:31]} 21. Qxd3 {[%emt 0:00:06]} Ba6 {[%emt 0:00:38] [#] And now ...N6e5 would win.} 22. Qc2 {[%emt 0:09:22]} Qe6 {[%emt 0:03:41]} 23. Nd4 {[%emt 0:03:16]} Qxc4 {[%emt 0:01:03]} 24. Qxc4 {[%emt 0:00:08]} Bxc4 {[%emt 0:00:05]} 25. Bxg4 {[%emt 0:00:08]} Ne5 $36 {[%emt 0:00:58][%mdl 2048] aiming for ...Bc5. Black is in control.} 26. Bh3 {[%emt 0:05:36]} Rd8 {[%emt 0:05:25]} 27. Be3 $2 {[%emt 0:00:13] [#] Loses the game.} (27. Bf4 $17 Rxd4 28. Bxe5 Rxe4 29. Bc3) 27... Rxd4 $1 $19 {[%emt 0:01:03][%mdl 512]} 28. Bxd4 {[%emt 0:00:05]} Nf3+ {[%emt 0:00:05]} 29. Kg2 {[%emt 0:00:10]} Nxd4 {[%emt 0:00:05]} 30. Bd7 {[%emt 0:02:27]} Be6 {[%emt 0:04:30]} 31. Bxe6 {[%emt 0:00:19]} Nxe6 {[%emt 0:01:01]} 32. Rd1 {[%emt 0:00:10]} (32. a5 $142) 32... Nc5 {[%emt 0:00:18][%csl LRa4,LRe4]} 33. a5 {[%emt 0:00:37]} bxa5 {[%emt 0:01:13][%cal Bb6a5,Ba5a4][%mdl 32]} ({Inferior is} 33... Nxe4 34. Rd7 Bc5 35. b4 Bxb4 36. a6 $14) 34. e5 {[%emt 0:01:50]} Kf8 {[%emt 0:01:26]} 35. Kf3 {[%emt 0:00:18]} Ke8 {[%emt 0:00:25]} 36. Ke3 {[%emt 0:00:15]} Na4 {[%emt 0:01:54]} 37. Ra1 $2 {[%emt 0:02:21]} (37. Rd2 {was worth a try.}) 37... Nxb2 {[%emt 0:00:17]} 38. Kd4 {[%emt 0:00:07]} a4 {[%emt 0:00:21] Weighted Error Value: White=0.44/Black=0.19 (very precise)} 0-1

[Event "BSV-SCK IM 2022"]
[Site "Berlin"]
[Date "2022.04.13"]
[Round "8.2"]
[White "Glek, Igor"]
[Black "Schmidek, Emil"]
[Result "1/2-1/2"]
[ECO "B10"]
[WhiteElo "2476"]
[BlackElo "2383"]
[Annotator "TA"]
[PlyCount "76"]
[EventDate "2022.04.08"]
[EventType "tourn"]
[EventCountry "GER"]
[SourceTitle "playchess.com"]
[Source "ChessBase"]
[SourceQuality "1"]
[TimeControl "5400+30"]

{[%evp 19,76,8,31,0,0,0,0,0,0,0,0,0,0,0,0,0,0,0,0,0,0,0,0,0,3,0,0,0,0,0,6,9,15,14,33,27,27,30,49,0,0,3,9,0,0,0,0,0,0,0,0,0,0,0,0,0,0,0,0]} 1. e4 {[%emt 0:00:03]} c6 {[%emt 0:00:03]} 2. c4 {[%emt 0:00:14]} d5 {[%emt 0:00:09]} 3. cxd5 {[%emt 0:00:06]} cxd5 {[%emt 0:00:03]} 4. exd5 {[%emt 0:00:03]} Nf6 {[%emt 0:00:05]} 5. Nc3 {[%emt 0:00:05]} Nxd5 {[%emt 0:00:08]} 6. Nf3 {[%emt 0:00:04]} Nc6 {[%emt 0:00:08]} 7. Bb5 {[%emt 0:00:05]} e6 {[%emt 0:00:12]} 8. O-O {[%emt 0:00:07]} Be7 {[%emt 0:01:42]} 9. d4 {[%emt 0:00:04]} O-O {[%emt 0:00:11]} 10. Re1 {[%emt 0:00:15]} Bd7 {[%emt 0:00:50]} 11. Nxd5 {[%emt 0:10:51] B10: Caro-Kann: 2 d3 and 2 c4.} exd5 {[%emt 0:00:06]} 12. h3 {[%emt 0:00:14]} Bf6 {[%emt 0:02:20]} 13. Bxc6 {[%emt 1:24:49]} Bxc6 {[%emt 1:31:03]} 14. Bf4 {[%emt 0:00:00]} Qb6 {[%emt 0:00:00]} 15. Qd2 {[%emt 0:00:00]} Rfe8 {[%emt 0:00:00]} 16. Bg5 {[%emt 0:00:00]} Bxg5 {[%emt 0:00:00]} 17. Nxg5 {[%emt 0:00:00] [#]} Bd7 $146 {[%emt 0:02:00]} ({Predecessor:} 17... f6 18. Nf3 Re4 19. Re3 Rxe3 20. fxe3 Re8 21. Rc1 Qc7 22. Kf2 Qd6 23. b4 Bb5 {0-1 (39) Boyer,M (2407)-Bluebaum,M (2642) Chess.com INT 2022}) 18. Rxe8+ {[%emt 0:02:30]} Rxe8 {[%emt 0:00:00]} 19. Nf3 {[%emt 0:00:00]} f6 20. Re1 {[%emt 0:01:00]} Rxe1+ {[%emt 0:01:30]} 21. Nxe1 {[%emt 0:00:00]} Bf5 22. a3 {[%emt 0:00:00]} g5 23. Nf3 {[%emt 0:00:00][%cal Be1f3,Bf3h2,Bh2g4,Bg4e3,Be3d1,Bd1c3][%mdl 32]} Be4 24. Nh2 {[%emt 0:00:00]} Qd6 25. Ng4 {[%emt 0:02:30]} b6 {[%emt 0:00:00]} 26. Qc3 {[%emt 0:00:30]} Kg7 {[%emt 0:03:00]} 27. Qc8 {[%emt 0:00:00]} Qe7 {[%emt 0:00:00]} 28. Ne3 {[%emt 0:00:00]} Kf7 $1 {[%emt 0:00:00]} 29. Qc3 {[%emt 0:00:00]} (29. Qa8 $14) 29... Qd7 $11 {[%emt 0:01:30] The position is equal.} 30. Qb3 {[%emt 0:00:00]} Ke6 $1 {[%emt 0:00:00]} 31. Nd1 {[%emt 0:00:00]} Qc6 {[%emt 0:00:00]} 32. Nc3 {[%emt 0:00:00]} Bg6 {[%emt 0:00:00]} 33. Qb4 {[%emt 0:00:00]} Qc4 {[%emt 0:00:00]} 34. Qf8 {[%emt 0:00:00]} Qxd4 {[%emt 0:00:00]} 35. Qc8+ {[%emt 0:04:30]} Ke5 36. Qc7+ {[%emt 0:00:00]} Ke6 $1 {[%emt 0:00:00]} 37. Qc6+ {[%emt 0:00:00]} Ke5 38. Qc7+ {[%emt 0:01:30]} Ke6 $1 {Weighted Error Value: White=0.03 (flawless) /Black=0.02 (flawless)} 1/2-1/2

[Event "BSV-SCK IM 2022"]
[Site "Berlin"]
[Date "2022.04.13"]
[Round "8.3"]
[White "Ermitsch, Magnus"]
[Black "Eugene, Floryan"]
[Result "0-1"]
[ECO "C60"]
[WhiteElo "2127"]
[BlackElo "2404"]
[Annotator "TA"]
[PlyCount "64"]
[EventDate "2022.04.08"]
[EventType "tourn"]
[EventCountry "GER"]
[SourceTitle "playchess.com"]
[Source "ChessBase"]
[SourceQuality "1"]
[TimeControl "5400+30"]

{[%evp 10,64,31,28,24,30,37,37,31,28,24,20,29,0,0,0,0,0,0,0,0,0,6,12,25,15,20,10,16,12,16,16,18,21,16,12,120,71,100,-409,-416,-416,-407,-407,-396,-484,-458,-808,-817,-911,-866,-838,-716,-720,-709,-29998,-29999]} 1. e4 {[%emt 0:00:08]} e5 {[%emt 0:01:13]} 2. Nf3 {[%emt 0:00:24]} Nc6 {[%emt 0:02:12]} 3. Bb5 {[%emt 0:00:22]} g6 {[%emt 0:05:01]} 4. c3 {[%emt 0:02:29]} Nge7 {[%emt 0:01:22]} 5. d4 {[%emt 0:00:31]} exd4 {[%emt 0:00:04]} 6. cxd4 {[%emt 0:00:14] aiming for d5.} d5 {[%emt 0:00:06] C60: Ruy Lopez: Unusual Black 3rd moves and 3...g6.} 7. exd5 {[%emt 0:07:59]} Nxd5 {[%emt 0:00:46]} 8. Ne5 {[%emt 0:06:03]} Qd6 {[%emt 0:05:42] White is slightly better.} 9. O-O {[%emt 0:03:45] Black must now prevent Re1.} Bg7 $1 {[%emt 0:00:50]} 10. Nd2 {[%emt 0:06:28][%cal Bb1d2,Bd2e4,Be4c5][%mdl 32]} O-O {[%emt 0:04:51]} 11. Ne4 {[%emt 0:03:18] [#]} Qb4 $146 {[%emt 0:00:47]} ({Predecessor:} 11... Qe7 12. Bc4 Nxe5 13. Bxd5 Ng4 14. h3 c6 15. Bg5 Qc7 16. hxg4 cxd5 17. Nf6+ Bxf6 18. Bxf6 {1-0 (29) Toth,A (2175)-Toth,J Hungary 1996}) 12. Bxc6 {[%emt 0:03:25]} bxc6 {[%emt 0:00:05]} 13. a3 {[%emt 0:05:45]} Qb6 {[%emt 0:06:23][%cal Oc6c5]} 14. Re1 {[%emt 0:06:31]} Re8 {[%emt 0:05:57]} 15. b4 {[%emt 0:09:21]} Bf5 {[%emt 0:07:48] Strongly threatening ...Bxe4.} (15... Bxe5 16. dxe5 Bf5 17. Be3 $1 $16) 16. Nc5 {[%emt 0:05:45]} Rad8 {[%emt 0:13:13][%cal Od5b4]} 17. Qb3 {[%emt 0:04:59]} a5 {[%emt 0:05:39][%cal Ra5b4]} 18. Bd2 {[%emt 0:02:17]} axb4 {[%emt 0:09:49]} 19. axb4 {[%emt 0:01:35]} Ra8 $1 {[%emt 0:00:17] Against Ra6} 20. Rac1 {[%emt 0:07:23]} Qb5 {[%emt 0:01:01]} 21. h3 {[%emt 0:04:00]} h5 {[%emt 0:02:11]} 22. Kh1 {[%emt 0:07:06]} Rab8 {[%emt 0:00:38]} (22... h4 $11 {keeps the balance.}) 23. Qf3 {[%emt 0:01:22]} (23. g4 $142 hxg4 24. hxg4 Bxe5 25. gxf5 Bxd4 26. fxg6 fxg6 27. Qh3 Rxe1+ 28. Rxe1 Bxc5 29. Rg1 (29. Qe6+ Kg7 $11)) 23... f6 {[%emt 0:09:55] [#]} 24. Ned7 {[%emt 0:03:11][%mdl 8192] Pair of Knights! Loses the game.} (24. g4 $1 $16 {[%cal Rg4f5] and life is bright.} hxg4 {[#]} 25. hxg4 $1) 24... Rxe1+ $19 {[%emt 0:01:12]} 25. Rxe1 {[%emt 0:01:53]} Rd8 {[%emt 0:00:23]} 26. Qg3 {[%emt 0:00:33]} Kh7 {[%emt 0:01:50]} (26... Bxd7 $2 27. Qxg6 Bf5 28. Qxf5 $18) ({Not} 26... Rxd7 27. Nxd7 h4 28. Qxh4 (28. Re8+ $2 Kf7 $19) 28... Bxd7 29. Ra1 $17) 27. Ne5 {[%emt 0:02:04]} fxe5 {[%emt 0:00:33]} 28. dxe5 {[%emt 0:00:14]} (28. Qg5 $142 Rh8 29. dxe5) 28... Nxb4 {[%emt 0:01:21]} 29. Be3 {[%emt 0:02:43]} Nc2 {[%emt 0:00:54]} 30. Rc1 {[%emt 0:00:04]} Qb2 {[%emt 0:02:30]} 31. e6 {[%emt 0:00:38]} Be5 {[%emt 0:01:39]} 32. Qg5 {[%emt 0:00:35] [#]} Qxc1+ $1 {[%emt 0:00:08][%mdl 512] Weighted Error Value: White=0.81/Black=0.16 (very precise)} 0-1

[Event "BSV-SCK IM 2022"]
[Site "Berlin"]
[Date "2022.04.13"]
[Round "8.4"]
[White "Mirzoev, Emil"]
[Black "Muse, Drazen"]
[Result "1-0"]
[ECO "D10"]
[WhiteElo "2460"]
[BlackElo "2325"]
[Annotator "TA"]
[PlyCount "93"]
[EventDate "2022.04.08"]
[EventType "tourn"]
[EventCountry "GER"]
[SourceTitle "playchess.com"]
[Source "ChessBase"]
[SourceQuality "1"]
[TimeControl "5400+30"]

{[%evp 14,93,28,17,20,17,19,15,33,17,24,22,37,39,66,43,50,28,46,36,91,83,99,115,100,93,92,96,83,80,81,53,106,76,135,135,177,155,205,191,203,197,212,196,215,235,285,190,228,204,253,136,131,130,138,135,126,114,168,78,179,170,177,139,218,205,229,234,292,290,505,424,385,236,651,675,945,936,885,897,2179,1990]} 1. d4 {[%emt 0:11:43]} d5 {[%emt 0:01:38]} 2. c4 {[%emt 0:00:13]} c6 {[%emt 0:00:05]} 3. Nc3 {[%emt 0:00:30]} Nf6 {[%emt 0:00:05]} 4. e3 {[%emt 0:00:11]} Bf5 {[%emt 0:01:40]} 5. cxd5 {[%emt 0:00:24]} cxd5 {[%emt 0:01:04]} 6. Qb3 {[%emt 0:00:13]} Bc8 {[%emt 0:03:09] 6...Nc6 is more fashionable.} 7. Nf3 {[%emt 0:01:59]} e6 {[%emt 0:01:32]} 8. Ne5 {[%emt 0:00:55]} Be7 {[%emt 0:00:56] D10: Slav Defence: 3 cxd5 (without early Nf3) and 3 Nc3.} 9. Bd3 {[%emt 0:00:22]} O-O {[%emt 0:00:59]} 10. O-O {[%emt 0:00:16]} Nc6 {[%emt 0:03:34] The position is equal.} 11. f4 {[%emt 0:00:44]} Nb4 {[%emt 0:01:08]} 12. Bb1 {[%emt 0:01:06] [#]} Bd6 $146 {[%emt 0:02:03]} ({Predecessor:} 12... Nd7 13. Bd2 a5 14. a3 Nc6 15. Bd3 Nb6 16. Ne2 Nxe5 17. fxe5 Bd7 18. a4 Bc6 {1-0 (25) Marin,M (2515)-Cuadras Avellana,J (2305) Sitges 1993}) 13. Bd2 {[%emt 0:03:15]} a6 {[%emt 0:04:35] Prevents Nb5.} 14. Qd1 {[%emt 0:08:07]} g6 {[%emt 0:04:36]} 15. g4 {[%emt 0:07:28][%cal Bg2g4,Bg4g5][%mdl 32]} Ne8 {[%emt 0:05:02]} 16. g5 {[%emt 0:02:33]} Bxe5 {[%emt 0:00:22]} (16... Ng7 $14) 17. dxe5 $16 {[%emt 0:02:03]} Nc6 {[%emt 0:00:08]} 18. Rf3 {[%emt 0:09:10]} Ng7 {[%emt 0:02:12]} 19. Rh3 {[%emt 0:01:39]} Nxe5 {[%emt 0:00:59]} 20. fxe5 {[%emt 0:02:56]} Qxg5+ {[%emt 0:00:08]} 21. Rg3 {[%emt 0:01:47]} Qxe5 {[%emt 0:00:05]} 22. Na4 {[%emt 0:06:52]} Qd6 {[%emt 0:05:55] Against Bb4} (22... b5 $14) 23. a3 {[%emt 0:07:42] aiming for Bb4.} a5 {[%emt 0:00:58] [#] Prevents Bb4.} ({Black should play} 23... Qc7) 24. Qb3 $1 {[%emt 0:01:36]} Bd7 {[%emt 0:01:16]} 25. Nb6 {[%emt 0:03:36]} Ra6 {[%emt 0:04:10]} (25... Ra7 $16 {might work better.} 26. Nxd7 Qxd7) 26. Nxd7 $18 {[%emt 0:00:33]} Qxd7 {[%emt 0:00:04]} 27. Bd3 {[%emt 0:00:36]} Raa8 {[%emt 0:00:04]} 28. Bc3 {[%emt 0:00:46]} Nh5 {[%emt 0:04:27]} 29. Rg2 {[%emt 0:01:46]} f5 {[%emt 0:03:21]} 30. Qd1 {[%emt 0:08:15] [#] Strongly threatening Qxh5.} Kf7 {[%emt 0:02:59]} 31. Qf3 {[%emt 0:03:43]} Ke7 {[%emt 0:02:44]} 32. b4 {[%emt 0:02:57]} (32. Qh3 $18) 32... Rfc8 $16 {[%emt 0:01:53]} 33. Be1 {[%emt 0:02:54] &Bianco is more active. This bishop pair is nice.} axb4 {[%emt 0:01:21]} 34. Bxb4+ {[%emt 0:00:05]} Kf7 {[%emt 0:00:53]} 35. Rd1 {[%emt 0:00:19] Hoping for e4.} Qc6 {[%emt 0:01:59]} (35... Qc7 $16) 36. h3 {[%emt 0:00:48]} (36. Kh1 $18 {is more deadly.}) 36... Nf6 {[%emt 0:00:28]} (36... Qc7 $16) 37. Qf4 $18 {[%emt 0:00:21]} Qe8 {[%emt 0:02:01]} 38. Qe5 {[%emt 0:01:16] Black must now prevent Bc3.} Nd7 {[%emt 0:00:29]} (38... Qd8 $16 39. Rb1 b6) 39. Qd4 {[%emt 0:00:37]} Qh8 {[%emt 0:00:13]} 40. Qh4 $40 {[%emt 0:01:31][%mdl 128] And now Qe7+ would win. White goes for the king.} Nf6 {[%emt 0:01:52]} 41. Bd6 {[%emt 0:05:57][%cal Bb4d6,Bd6e5,Be5f6][%mdl 32]} h6 $2 {[%emt 0:02:13]} (41... Qd8) 42. Be5 {[%emt 0:00:00]} g5 {[%emt 0:00:00]} 43. Qb4 {[%emt 0:00:00]} Kg6 $2 {[%emt 0:00:00]} (43... Qf8 44. Qxb7+ Qe7 45. Qxe7+ Kxe7) 44. h4 {[%emt 0:00:00] White is clearly winning.} Qf8 {[%emt 0:00:00]} 45. hxg5 {[%emt 0:00:00]} hxg5 {[%emt 0:00:00]} 46. Qh4 {[%emt 0:00:00]} g4 {[%emt 0:00:00]} 47. Bxf6 {[%emt 0:00:00] Weighted Error Value: White=0.18 (very precise) /Black=0.43} 1-0

[Event "BSV-SCK IM 2022"]
[Site "Berlin"]
[Date "2022.04.13"]
[Round "8.5"]
[White "Glantz, Robert"]
[Black "Eilenberg, Jonas"]
[Result "1-0"]
[ECO "D27"]
[WhiteElo "2318"]
[BlackElo "2135"]
[Annotator "TA"]
[PlyCount "77"]
[EventDate "2022.04.08"]
[EventType "tourn"]
[EventCountry "GER"]
[SourceTitle "playchess.com"]
[Source "ChessBase"]
[SourceQuality "1"]
[TimeControl "5400+30"]

{[%evp 26,77,0,0,36,10,45,66,60,35,29,13,15,0,14,-11,48,3,88,73,92,72,163,143,295,289,612,594,593,579,529,419,517,468,528,512,529,497,518,525,713,706,685,694,706,706,706,706,706,706,29993,29994,29994,29995]} 1. d4 {[%emt 0:00:51]} d5 {[%emt 0:00:06]} 2. Nf3 {[%emt 0:00:34]} c5 {[%emt 0:00:06]} 3. c4 {[%emt 0:00:40]} dxc4 {[%emt 0:03:01]} 4. e3 {[%emt 0:11:34]} cxd4 {[%emt 0:00:29]} 5. Bxc4 {[%emt 0:03:25]} Nf6 {[%emt 0:00:39]} 6. O-O {[%emt 0:01:32]} e6 {[%emt 0:00:55]} 7. exd4 {[%emt 0:01:47]} Be7 {[%emt 0:00:26]} 8. Nc3 {[%emt 0:00:16]} O-O {[%emt 0:01:36]} 9. Re1 {[%emt 0:01:35]} a6 {[%emt 0:01:32]} 10. a4 {[%emt 0:04:08]} Nc6 {[%emt 0:01:10]} 11. Bg5 {[%emt 0:00:41]} Nb4 {[%emt 0:08:13]} 12. Qb3 {[%emt 0:05:58]} Nc6 {[%emt 0:06:09]} 13. Qd1 {[%emt 0:04:31]} Nb4 {[%emt 0:00:19]} 14. Qe2 {[%emt 0:01:14]} Re8 {[%emt 0:13:00] D27: Queen's Gambit Accepted: Classical main line: 7 e4!? and 7 a4.} 15. Rad1 {[%emt 0:08:04][%cal Od4d5] [#] Threatens to win with d5!} Bd7 {[%emt 0:04:52]} (15... Nfd5 $5 {[%cal Re7g5]} 16. Bxd5 Nxd5 17. Bxe7 Rxe7 $11) 16. Ne5 {[%emt 0:02:37]} Rc8 {[%emt 0:14:55] White is slightly better.} 17. Qf3 {[%emt 0:10:09]} Bc6 {[%emt 0:06:00] [#] Against d5} 18. Qh3 $146 {[%emt 0:09:25]} ({Predecessor:} 18. Nxc6 Rxc6 19. Bb3 Rc7 20. g3 Rd7 21. Bxf6 {½-½ (19) Skembris,S (2405)-Marjanovic,S (2515) Bor 1983}) 18... Bd5 {[%emt 0:20:26]} 19. b3 {[%emt 0:09:48]} (19. Nxf7 $2 Kxf7 20. Nxd5 exd5 $19) 19... Qd6 {[%emt 0:06:56]} 20. Re2 {[%emt 0:03:07]} b6 {[%emt 0:02:22]} (20... Nd7 $11 21. Bxe7 (21. Nxd5 exd5 22. Qxd7 Qxd7 $11) 21... Rxe7) 21. f4 {[%emt 0:04:48]} Bxc4 {[%emt 0:03:47]} (21... Nd7 $11 {remains equal.}) 22. bxc4 $16 {[%emt 0:00:18]} Nc6 {[%emt 0:00:43]} 23. Kh1 {[%emt 0:04:21] 0x0.002037565f53dp-1022s more active pieces.} Na5 {[%emt 0:01:17] [#]} (23... Nxd4 $2 24. Red2 $18) (23... Qb4 $16) 24. d5 $1 $18 {[%emt 0:01:35][%cal Bd4d5,Bd5e6][%mdl 32]} Nxc4 $2 {[%emt 0:01:46] Loses the game.} (24... exd5 $16 25. Rde1 (25. Nxd5 Nxd5 26. Nxf7 Kxf7 $15) (25. cxd5 h6 $16) 25... Nxc4) 25. Nxf7 $1 {[%emt 0:01:20]} Kxf7 {[%emt 0:01:04]} (25... Qc7 26. dxe6 Nb2) 26. dxe6+ {[%emt 0:00:13][%mdl 64] Discovered Attack} Kg8 {[%emt 0:00:12] White must now prevent ...Qa3.} 27. Rxd6 {[%emt 0:00:07]} Nxd6 {[%emt 0:00:05]} 28. Re1 {[%emt 0:01:36]} Rc5 {[%emt 0:01:33]} 29. Qf3 {[%emt 0:02:52]} h6 {[%emt 0:00:47]} 30. Bh4 {[%emt 0:02:44]} b5 {[%emt 0:00:16]} 31. axb5 {[%emt 0:00:41]} axb5 {[%emt 0:00:00]} 32. h3 {[%emt 0:00:48]} b4 {[%emt 0:00:38]} 33. Bxf6 {[%emt 0:00:24]} Bxf6 {[%emt 0:00:01]} 34. Nd5 {[%emt 0:00:15]} Bc3 {[%emt 0:00:46]} 35. Re2 {[%emt 0:01:26]} Nf5 {[%emt 0:00:23]} 36. Kh2 {[%emt 0:00:35] And now Qh5 would win.} Nd4 {[%emt 0:00:32]} 37. Qh5 {[%emt 0:00:21]} Rxe6 {[%emt 0:01:13]} 38. Rxe6 {[%emt 0:00:28]} Nxe6 {[%emt 0:00:32]} 39. Qe8+ {[%emt 0:00:07] Weighted Error Value: White=0.15 (very precise) /Black=0.79} 1-0